bitfinex/quotes_BTCUSD_20251021
["timestamp","ask_amount","ask_price","bid_price","bid_amount"]
[1761061514610,1e-08,113540.0,113530.0,1.77871046]
[1761061516161,1e-08,113540.0,113530.0,1.77971046]
[1761061516569,1e-08,113540.0,113530.0,1.78971045]
[1761061516784,1e-08,113540.0,113530.0,0.65416617]
[1761061517034,1e-08,113540.0,113530.0,0.64416618]
[1761061517184,1e-08,113540.0,113530.0,0.65416617]
[1761061517768,1e-08,113540.0,113530.0,0.66416616]
[1761061518217,1e-08,113540.0,113530.0,0.65416617]
[1761061518438,1e-08,113540.0,113530.0,0.66416616]
[1761061518782,1e-08,113540.0,113530.0,0.67267195]
[1761061519043,1e-08,113540.0,113530.0,0.65416617]
[1761061519232,1e-08,113540.0,113530.0,0.78723195]
[1761061519799,1e-08,113540.0,113530.0,0.77723196]
[1761061519995,1e-08,113540.0,113530.0,0.78723195]
[1761061520775,1e-08,113540.0,113530.0,0.77723196]
[1761061520910,1e-08,113540.0,113530.0,0.78723195]
[1761061521817,1e-08,113540.0,113530.0,0.77872616]
[1761061522017,1e-08,113540.0,113530.0,0.85388618]
[1761061523570,1e-08,113540.0,113530.0,0.3631839]
[1761061523817,1e-08,113540.0,113530.0,0.4777039]
[1761061523990,1e-08,113540.0,113530.0,0.51388618]
[1761061524145,1e-08,113540.0,113530.0,0.85388618]
[1761061524460,1e-08,113540.0,113530.0,0.85288618]
[1761061524668,1e-08,113540.0,113530.0,0.85188618]
[1761061525040,1e-08,113540.0,113530.0,0.85388618]
[1761061529719,1e-08,113540.0,113530.0,0.85288618]
[1761061530538,1e-08,113540.0,113530.0,0.85388618]
[1761061530856,1e-08,113540.0,113530.0,0.86388617]
[1761061531075,1e-08,113540.0,113530.0,0.86288617]
[1761061531279,1e-08,113540.0,113530.0,0.87388616]
[1761061533139,1e-08,113540.0,113530.0,0.73936618]
[1761061533407,1e-08,113540.0,113530.0,0.85380618]
[1761061533998,1e-08,113540.0,113530.0,0.86380617]
[1761061535579,1e-08,113540.0,113530.0,0.73936618]
[1761061535807,1e-08,113540.0,113530.0,0.85380618]
[1761061536708,1e-08,113540.0,113530.0,0.8176239]
[1761061536901,1e-08,113540.0,113530.0,0.85380618]
[1761061537116,1e-08,113540.0,113530.0,0.2679839]
[1761061537450,1e-08,113540.0,113530.0,0.3824239]
[1761061538057,1e-08,113540.0,113530.0,0.3814239]
[1761061538932,1e-08,113540.0,113530.0,0.3804239]
[1761061539484,1e-08,113540.0,113530.0,0.3814239]
[1761061539677,1e-08,113540.0,113530.0,0.2679839]
[1761061539881,1e-08,113540.0,113530.0,0.3824239]
[1761061541016,1e-08,113540.0,113530.0,0.95069604]
[1761061541854,0.17614938,113540.0,113530.0,0.09181901]
[1761061542061,0.17614938,113540.0,113530.0,0.20621901]
[1761061542304,0.19816805,113540.0,113530.0,0.20621901]
[1761061542499,0.17614938,113540.0,113530.0,0.20521901]
[1761061542644,0.17614938,113540.0,113530.0,0.20421901]
[1761061545404,0.19816805,113540.0,113530.0,0.20421901]
[1761061546417,0.19816805,113540.0,113500.0,0.34]
[1761061546418,0.18499908,113530.0,113500.0,0.34]
[1761061546621,0.19821151,113520.0,113510.0,0.20421901]
[1761061547070,0.18499908,113530.0,113510.0,0.20421901]
[1761061547305,0.20701969,113530.0,113510.0,0.20421901]
[1761061547503,0.20701969,113530.0,113510.0,0.38041472]
[1761061547917,0.1761804,113520.0,113510.0,0.20421901]
[1761061548057,0.18499908,113530.0,113510.0,0.20421901]
[1761061548304,0.1761804,113520.0,113510.0,0.20421901]
[1761061548505,0.21701016,113530.0,113510.0,0.3804135]
[1761061548506,0.19498955,113530.0,113510.0,0.3804135]
[1761061548693,0.21993084,113550.0,113520.0,0.18111094]
[1761061548914,0.19816879,113540.0,113530.0,0.1144]
[1761061549115,1.10644093,113540.0,113530.0,0.1144]
[1761061549338,1.08442226,113540.0,113530.0,0.1144]
[1761061550284,1.17424127,113540.0,113530.0,0.1144]
[1761061550484,1.08442226,113540.0,113530.0,0.1144]
[1761061550716,1.09466419,113540.0,113530.0,0.1144]
[1761061551536,0.17619592,113510.0,113500.0,0.00821376]
[1761061551770,0.19822041,113510.0,113500.0,0.12261376]
[1761061551960,0.02202449,113510.0,113500.0,0.12261376]
[1761061552160,0.04851061,113520.0,113500.0,0.3935808]
[1761061552363,0.18499999,113530.0,113510.0,0.26601493]
[1761061552615,0.2070206,113530.0,113520.0,0.1144]
[1761061552747,0.23350726,113530.0,113520.0,0.1144]
[1761061552981,0.21148665,113530.0,113520.0,0.1144]
[1761061555249,0.19822041,113510.0,113500.0,0.20436463]
[1761061556528,0.18867718,113510.0,113500.0,0.11454562]
[1761061556757,0.19822041,113510.0,113500.0,0.11454562]
[1761061557376,0.12822041,113510.0,113500.0,0.11454562]
[1761061558460,0.46822041,113510.0,113500.0,0.11454562]
[1761061558635,0.47268761,113510.0,113500.0,0.11454562]
[1761061558836,0.36649169,113510.0,113500.0,0.12259231]
[1761061559037,0.34,113510.0,113500.0,0.11454562]
[1761061559210,0.51619592,113510.0,113500.0,0.11454562]
[1761061559618,0.51719592,113510.0,113500.0,0.11454562]
[1761061560513,0.341,113510.0,113500.0,0.11454562]
[1761061560676,0.001,113510.0,113500.0,0.11454562]
[1761061560836,0.001,113510.0,113500.0,1.08886997]
[1761061561042,0.001,113510.0,113500.0,0.38057608]
[1761061561902,0.001,113510.0,113500.0,1.08393339]
[1761061562053,0.001,113510.0,113500.0,0.20436463]
[1761061562627,0.001,113510.0,113500.0,0.38057608]
[1761061562771,0.17618559,113520.0,113500.0,0.38057608]
[1761061562982,0.55146174,113530.0,113510.0,0.26601377]
[1761061563198,0.36648668,113530.0,113520.0,0.1144]
[1761061563420,0.02648668,113530.0,113520.0,1.08868554]
[1761061563627,0.00883416,113550.0,113540.0,0.17614937]
[1761061563872,0.00883416,113550.0,113540.0,0.38524943]
[1761061564167,0.00883416,113550.0,113540.0,0.38032838]
[1761061564374,0.00883416,113550.0,113540.0,1.09352911]
[1761061564581,0.00883416,113550.0,113540.0,1.09252911]
[1761061564911,0.00883416,113550.0,113540.0,1.46871139]
[1761061566155,0.00883416,113550.0,113540.0,1.46971139]
[1761061567361,0.00883416,113550.0,113540.0,1.47071139]
[1761061567582,0.00883416,113550.0,113540.0,1.46971139]
[1761061567788,0.00883416,113550.0,113540.0,1.47071139]
[1761061567947,0.00883416,113550.0,113540.0,0.76735408]
[1761061568200,0.00883416,113550.0,113540.0,1.47071139]
[1761061568978,1e-08,113550.0,113540.0,1.47071139]
[1761061569587,1e-08,113570.0,113550.0,1.25567345]
[1761061569785,0.00014561,113570.0,113560.0,1.21991198]
[1761061570007,0.00014561,113570.0,113560.0,1.21499695]
[1761061570299,0.00014561,113570.0,113560.0,1.23107418]
[1761061570678,0.00014561,113570.0,113560.0,0.49153459]
[1761061570990,0.00014561,113570.0,113560.0,0.49253459]
[1761061571191,0.17624845,113570.0,113560.0,0.01707723]
[1761061571413,0.00014561,113570.0,113560.0,0.39733459]
[1761061571619,0.17624845,113570.0,113560.0,0.22121624]
[1761061571816,0.1982613,113570.0,113560.0,0.22121624]
[1761061572075,0.1982613,113570.0,113560.0,0.10689624]
[1761061572202,0.19009756,113570.0,113560.0,0.20513901]
[1761061572402,0.19666029,113570.0,113560.0,0.20513901]
[1761061572602,0.19666029,113570.0,113560.0,0.09081901]
[1761061572820,0.19666029,113570.0,113560.0,0.11532]
[1761061573283,0.19666029,113570.0,113560.0,0.29043835]
[1761061573284,0.00014561,113570.0,113560.0,0.29043835]
[1761061573496,0.00014561,113570.0,113560.0,0.39634329]
[1761061574393,0.00014561,113570.0,113560.0,1.0997006]
[1761061575149,0.00080216,113570.0,113560.0,0.39634329]
[1761061575964,0.00080216,113570.0,113560.0,1.0997006]
[1761061576206,0.00080216,113570.0,113560.0,1.47588288]
[1761061577393,0.00080216,113570.0,113560.0,1.47688288]
[1761061580295,0.00099012,113580.0,113570.0,0.51610284]
[1761061580443,0.00099012,113580.0,113570.0,1.32536509]
[1761061580864,0.00131836,113580.0,113570.0,1.32536509]
[1761061581089,0.00131836,113580.0,113570.0,1.32586509]
[1761061582369,0.00412727,113590.0,113580.0,0.91562692]
[1761061582577,0.00412727,113590.0,113580.0,1.23093186]
[1761061583161,1e-08,113590.0,113580.0,1.7178135]
[1761061583804,1e-08,113590.0,113580.0,1.57193186]
[1761061584354,1e-08,113590.0,113580.0,1.57293186]
[1761061584878,1e-08,113590.0,113580.0,1.53874958]
[1761061585085,1e-08,113590.0,113580.0,0.87157455]
[1761061585319,1e-08,113590.0,113580.0,1.57493186]
[1761061585524,1e-08,113590.0,113580.0,1.32934958]
[1761061585734,1e-08,113590.0,113580.0,1.53874958]
[1761061585960,1e-08,113590.0,113580.0,1.57493186]
[1761061586346,1e-08,113590.0,113580.0,0.28599227]
[1761061586581,1e-08,113590.0,113580.0,1.10358958]
[1761061588020,0.00032819,113590.0,113580.0,1.10358958]
[1761061588501,0.00032819,113590.0,113580.0,0.40023227]
[1761061588709,0.00032819,113590.0,113580.0,1.10351236]
[1761061588901,0.00032819,113590.0,113580.0,1.47969464]
[1761061589356,0.00032819,113590.0,113580.0,0.74011505]
[1761061589562,0.00032819,113590.0,113580.0,1.10348177]
[1761061589759,0.022005,113600.0,113590.0,0.17607183]
[1761061589760,0.01733319,113600.0,113590.0,0.17607183]
[1761061590067,0.19338952,113600.0,113590.0,0.10583713]
[1761061590268,0.19371767,113600.0,113590.0,0.10583713]
[1761061590856,0.01766134,113600.0,113590.0,0.28190896]
[1761061591190,0.03896838,113600.0,113590.0,0.98526627]
[1761061591395,0.01696134,113600.0,113590.0,0.96924815]
[1761061592002,0.01696134,113600.0,113590.0,1.00543043]
[1761061592748,0.01696134,113600.0,113590.0,0.30207312]
[1761061592941,0.01696134,113600.0,113590.0,1.00543043]
[1761061593664,0.01696134,113600.0,113590.0,1.00643043]
[1761061593867,0.01696134,113600.0,113590.0,1.34643043]
[1761061594631,0.01152968,113610.0,113600.0,0.55223861]
[1761061594853,0.01167525,113610.0,113600.0,1.45961493]
[1761061597255,0.01167525,113610.0,113600.0,1.46061493]
[1761061597641,0.01167525,113610.0,113600.0,1.46161493]
[1761061598255,0.01167525,113610.0,113600.0,1.47144816]
[1761061600076,0.01167525,113610.0,113600.0,1.32106588]
[1761061600199,0.01167525,113610.0,113600.0,0.36303534]
[1761061600402,0.01167525,113610.0,113600.0,1.18055265]
[1761061600643,0.01167525,113610.0,113600.0,0.47719534]
[1761061600802,0.01167525,113610.0,113600.0,0.48695948]
[1761061601168,0.01167525,113610.0,113600.0,1.19031679]
[1761061601343,0.01167525,113610.0,113600.0,0.82695948]
[1761061601543,0.01167525,113610.0,113600.0,1.56649907]
[1761061601714,0.01117525,113610.0,113600.0,1.56649907]
[1761061602648,0.01117525,113610.0,113600.0,1.45233907]
[1761061602856,0.01117525,113610.0,113600.0,1.56649907]
[1761061603261,0.01117525,113610.0,113600.0,1.45233907]
[1761061603461,0.01117525,113610.0,113600.0,1.56649907]
[1761061603862,0.01117525,113610.0,113600.0,0.86314176]
[1761061604030,0.01117525,113610.0,113600.0,1.41615679]
[1761061604235,0.01117525,113610.0,113600.0,1.53031679]
[1761061604499,0.01117525,113610.0,113600.0,1.41615679]
[1761061604698,0.01117525,113610.0,113600.0,1.53031679]
[1761061605390,0.01150335,113610.0,113600.0,1.53031679]
[1761061605864,0.01150335,113610.0,113600.0,1.56649907]
[1761061610275,0.01150335,113610.0,113600.0,1.56641907]
[1761061610690,0.00026093,113620.0,113610.0,1.25558043]
[1761061610978,0.00074606,113620.0,113610.0,1.34539944]
[1761061611215,0.00074606,113620.0,113610.0,1.30921716]
[1761061611945,0.00074606,113620.0,113610.0,1.31021716]
[1761061612163,0.00074606,113620.0,113610.0,0.75374149]
[1761061612344,0.00074606,113620.0,113610.0,0.26685985]
[1761061612793,0.00074606,113620.0,113610.0,1.08433716]
[1761061613226,0.00074606,113620.0,113610.0,1.08333716]
[1761061615351,0.17597998,113650.0,113630.0,0.17600985]
[1761061615559,0.20204156,113650.0,113640.0,0.11408]
[1761061616658,0.20304156,113650.0,113640.0,0.11408]
[1761061616874,0.75297154,113650.0,113640.0,0.11408]
[1761061617095,0.18723625,113650.0,113640.0,0.11408]
[1761061617333,0.20435344,113650.0,113640.0,0.11408]
[1761061617799,0.20335344,113650.0,113640.0,0.11408]
[1761061618013,0.18723625,113650.0,113640.0,0.11408]
[1761061618232,0.20435344,113650.0,113640.0,0.11408]
[1761061618680,0.20435344,113650.0,113640.0,0.11364]
[1761061619111,0.18723625,113650.0,113640.0,0.11364]
[1761061619738,0.75428342,113650.0,113640.0,0.11364]
[1761061620144,0.18723625,113650.0,113640.0,0.11364]
[1761061620759,0.17843621,113650.0,113640.0,0.11364]
[1761061620906,0.1955534,113650.0,113640.0,0.11364]
[1761061623671,0.25719921,113650.0,113640.0,0.11364]
[1761061623867,0.24008202,113650.0,113640.0,0.11364]
[1761061624062,0.17843621,113650.0,113640.0,0.11364]
[1761061624262,0.1955534,113650.0,113640.0,0.11364]
[1761061625518,0.01957452,113650.0,113640.0,0.28963436]
[1761061625756,0.00245733,113650.0,113640.0,0.28963436]
[1761061625878,0.00245733,113650.0,113640.0,0.85668153]
[1761061626079,0.00245733,113650.0,113640.0,1.19668153]
[1761061626280,0.00245733,113650.0,113640.0,1.23286381]
[1761061626499,0.00245733,113650.0,113640.0,1.11922381]
[1761061626764,0.00245733,113650.0,113640.0,1.23330381]
[1761061626994,0.00245733,113650.0,113640.0,1.24300066]
[1761061627200,0.00145733,113650.0,113640.0,0.29007436]
[1761061627421,0.00145733,113650.0,113640.0,0.68112717]
[1761061627624,0.01857452,113650.0,113640.0,0.85812153]
[1761061627857,0.00145733,113650.0,113640.0,0.85812153]
[1761061629926,0.00145733,113650.0,113640.0,1.19812153]
[1761061630466,0.00145733,113650.0,113640.0,0.29107436]
[1761061630657,0.00145733,113650.0,113640.0,0.85812153]
[1761061631003,0.01857452,113650.0,113640.0,0.29107436]
[1761061631811,0.00145733,113650.0,113640.0,0.38089337]
[1761061632295,0.01857452,113650.0,113640.0,0.38089337]
[1761061632838,0.1945534,113650.0,113640.0,0.20485901]
[1761061633010,0.01857452,113650.0,113640.0,0.38085337]
[1761061634189,0.01857452,113650.0,113640.0,0.94790054]
[1761061634390,0.00145733,113650.0,113640.0,0.94690054]
[1761061635089,0.01857452,113650.0,113640.0,0.94690054]
[1761061635309,0.01857452,113650.0,113640.0,0.37985337]
[1761061635489,0.01857452,113650.0,113640.0,0.94690054]
[1761061635894,0.01857452,113650.0,113640.0,0.37985337]
[1761061636154,0.01857452,113650.0,113640.0,0.94690054]
[1761061637538,0.1945534,113650.0,113640.0,0.37985337]
[1761061637919,0.01857452,113650.0,113640.0,0.37985337]
[1761061638397,0.1945534,113650.0,113640.0,0.37985337]
[1761061638588,0.01857452,113650.0,113640.0,0.94690054]
[1761061639798,0.00145733,113650.0,113640.0,0.94690054]
[1761061640070,0.00145733,113650.0,113640.0,0.94686054]
[1761061641066,0.00145733,113650.0,113640.0,0.37981337]
[1761061641230,0.00145733,113650.0,113640.0,0.94686054]
[1761061641649,0.00145733,113650.0,113640.0,0.37981337]
[1761061641853,0.00145733,113650.0,113640.0,0.94686054]
[1761061642352,0.00145733,113650.0,113640.0,0.37981337]
[1761061642546,0.00145733,113650.0,113640.0,0.94686054]
[1761061642930,0.00145733,113650.0,113640.0,0.94786054]
[1761061643130,0.00145733,113650.0,113640.0,0.94886054]
[1761061643996,0.00145733,113650.0,113640.0,1.89208999]
[1761061644259,0.00145733,113650.0,113640.0,1.32504282]
[1761061644432,0.00145733,113650.0,113640.0,0.75799565]
[1761061644610,0.00145733,113650.0,113640.0,1.32404282]
[1761061644822,0.00145733,113650.0,113640.0,1.28786054]
[1761061645179,0.00145733,113650.0,113640.0,1.28886054]
[1761061646067,0.00145733,113650.0,113640.0,0.94782054]
[1761061646841,0.00145733,113650.0,113640.0,0.38177337]
[1761061647044,0.00145733,113650.0,113640.0,0.94782054]
[1761061647271,0.00145733,113650.0,113640.0,0.94882054]
[1761061647633,0.00145733,113650.0,113640.0,0.20577901]
[1761061647836,0.1945534,113650.0,113640.0,0.20577901]
[1761061648041,0.1945534,113650.0,113640.0,0.11596]
[1761061648474,0.01857452,113650.0,113640.0,0.11596]
[1761061648648,0.1945534,113650.0,113640.0,0.11596]
[1761061648963,0.01857452,113650.0,113640.0,0.94782054]
[1761061649165,0.00145733,113650.0,113640.0,0.94682054]
[1761061649454,0.00145733,113650.0,113640.0,0.94782054]
[1761061649904,0.00145733,113650.0,113640.0,0.38077337]
[1761061650088,0.00145733,113650.0,113640.0,0.94782054]
[1761061652300,0.00145733,113650.0,113640.0,1.28782054]
[1761061652712,0.00145733,113650.0,113640.0,0.38077337]
[1761061652913,0.00145733,113650.0,113640.0,0.94782054]
[1761061654800,0.00145733,113650.0,113640.0,0.38077337]
[1761061655019,0.00145733,113650.0,113640.0,0.94782054]
[1761061656682,0.00145733,113650.0,113640.0,0.38077337]
[1761061656898,0.00145733,113650.0,113640.0,0.94782054]
[1761061658500,0.00145733,113650.0,113640.0,0.38077337]
[1761061658935,0.00145733,113650.0,113640.0,0.94782054]
[1761061659139,0.01857452,113650.0,113640.0,0.11496]
[1761061659342,0.1945534,113650.0,113640.0,0.11496]
[1761061659570,0.1945534,113650.0,113640.0,0.29095436]
[1761061659814,0.1945534,113650.0,113640.0,0.11496]
[1761061660434,0.01857452,113650.0,113640.0,0.11496]
[1761061660615,0.1945534,113650.0,113640.0,0.11496]
[1761061660996,0.1945534,113650.0,113640.0,0.001]
[1761061661183,0.1945534,113650.0,113640.0,0.11492]
[1761061662213,0.01857452,113650.0,113640.0,0.94678054]
[1761061662394,0.00145733,113650.0,113640.0,0.37973337]
[1761061662613,0.1945534,113650.0,113640.0,0.20373901]
[1761061662826,0.1945534,113650.0,113640.0,0.37973337]
[1761061663461,0.01857452,113650.0,113640.0,0.94678054]
[1761061663664,0.00145733,113650.0,113640.0,0.94678054]
[1761061664814,0.00145733,113650.0,113640.0,0.11392]
[1761061664815,0.1945534,113650.0,113640.0,0.11392]
[1761061666622,0.77453424,113650.0,113640.0,0.11392]
[1761061666829,0.17600985,113630.0,113610.0,0.17603756]
[1761061667028,0.19312704,113630.0,113620.0,0.11392]
[1761061667520,0.01711719,113630.0,113620.0,0.11392]
[1761061667748,0.19312704,113630.0,113620.0,0.11392]
[1761061667923,0.1937831,113630.0,113620.0,0.11392]
[1761061668129,0.1937831,113630.0,113610.0,0.26585976]
[1761061668333,0.17602534,113620.0,113610.0,0.08981901]
[1761061668676,0.51602534,113620.0,113590.0,0.80502669]
[1761061668913,0.19316072,113610.0,113600.0,0.20373901]
[1761061669120,0.19316072,113610.0,113600.0,0.11392]
[1761061669558,0.01711719,113610.0,113600.0,0.28997633]
[1761061669766,0.18477782,113650.0,113610.0,0.18482905]
[1761061669973,0.20193964,113640.0,113620.0,0.28994534]
[1761061670191,0.17600985,113630.0,113620.0,0.28994534]
[1761061670386,0.18479545,113640.0,113620.0,0.28994534]
[1761061670607,0.19311293,113640.0,113630.0,0.17600985]
[1761061670768,0.19311341,113640.0,113630.0,0.11392]
[1761061671625,0.17599622,113640.0,113630.0,0.11392]
[1761061671770,0.19311341,113640.0,113630.0,0.11392]
[1761061671956,0.19311155,113640.0,113630.0,0.11392]
[1761061672155,0.19311155,113640.0,113620.0,0.7430725]
[1761061672358,0.00014545,113650.0,113640.0,0.17599436]
[1761061672622,0.19324152,113650.0,113630.0,0.37974886]
[1761061672832,0.19324152,113650.0,113630.0,0.94679417]
[1761061673050,0.01726264,113650.0,113640.0,0.17599436]
[1761061673241,0.19324152,113650.0,113640.0,0.74304153]
[1761061673642,0.01726264,113650.0,113640.0,0.74304153]
[1761061673780,0.19324152,113650.0,113640.0,0.74304153]
[1761061673983,0.1945534,113650.0,113640.0,0.74304153]
[1761061674385,0.1945534,113650.0,113640.0,0.56704717]
[1761061674599,0.1945534,113650.0,113630.0,0.94679244]
[1761061674803,0.19324152,113650.0,113630.0,0.94679244]
[1761061675001,0.19324152,113650.0,113630.0,0.37974527]
[1761061675205,0.19324152,113650.0,113640.0,0.17599436]
[1761061675391,0.19324152,113650.0,113630.0,0.94679244]
[1761061676010,0.17599436,113640.0,113630.0,0.11392]
[1761061676224,0.17600985,113630.0,113620.0,0.17602533]
[1761061676424,0.17599488,113640.0,113620.0,0.74307251]
[1761061676670,0.17599488,113640.0,113630.0,0.11392]
[1761061677402,0.2120867,113640.0,113630.0,0.11392]
[1761061677733,0.17599488,113640.0,113630.0,0.11392]
[1761061677901,0.51599488,113640.0,113630.0,0.11392]
[1761061678283,0.51599436,113640.0,113630.0,0.11392]
[1761061680005,0.51697836,113640.0,113630.0,0.11392]
[1761061681158,0.000984,113640.0,113630.0,0.28992985]
[1761061681360,0.000984,113640.0,113630.0,0.9917116]
[1761061681622,0.19409555,113640.0,113630.0,0.9917116]
[1761061681785,0.01810119,113640.0,113630.0,1.08153061]
[1761061681996,0.000984,113640.0,113630.0,1.08153061]
[1761061683711,0.000984,113640.0,113630.0,0.37974886]
[1761061683915,0.000984,113640.0,113630.0,1.08153061]
[1761061684490,0.19052556,113650.0,113640.0,0.17599436]
[1761061684908,0.19052556,113650.0,113630.0,0.37974886]
[1761061685109,0.19052556,113650.0,113640.0,0.17599436]
[1761061685342,0.19052556,113650.0,113630.0,0.37974886]
[1761061685487,0.19052556,113650.0,113630.0,0.17600985]
[1761061685488,0.17599436,113640.0,113630.0,0.17600985]
[1761061685680,0.17599436,113640.0,113620.0,0.17602459]
[1761061685880,0.17599436,113640.0,113620.0,0.2658436]
[1761061685881,0.01454664,113630.0,113620.0,0.2658436]
[1761061686123,0.01454664,113630.0,113620.0,0.3797636]
[1761061686325,0.01454664,113630.0,113620.0,0.96762535]
[1761061686889,0.01454664,113630.0,113620.0,1.08154535]
[1761061687348,0.01454664,113630.0,113620.0,0.3797636]
[1761061687552,0.23506649,113660.0,113640.0,0.17599073]
[1761061687762,0.57506649,113660.0,113650.0,0.11392]
[1761061688629,0.57606649,113660.0,113650.0,0.11392]
[1761061688905,0.57506649,113660.0,113650.0,0.11392]
[1761061689420,0.6510548,113660.0,113650.0,0.11392]
[1761061689628,0.17599436,113640.0,113620.0,0.265844]
[1761061689829,0.01454664,113630.0,113620.0,0.26598945]
[1761061689988,0.19055649,113630.0,113620.0,0.37986945]
[1761061690192,0.01454664,113630.0,113620.0,0.26598945]
[1761061690391,0.190541,113640.0,113630.0,0.176005]
[1761061690621,0.17599436,113640.0,113630.0,0.289885]
[1761061690790,0.17630905,113650.0,113630.0,0.99166675]
[1761061690994,0.19085888,113650.0,113630.0,1.08148576]
[1761061691176,0.19085888,113650.0,113640.0,0.17599436]
[1761061691384,0.17599436,113640.0,113630.0,0.37970886]
[1761061691785,0.190541,113640.0,113630.0,0.37970886]
[1761061691989,0.190541,113640.0,113630.0,0.28988985]
[1761061692385,0.190541,113640.0,113630.0,0.11388]
[1761061692836,0.22051444,113640.0,113630.0,0.11388]
[1761061693057,0.17599436,113640.0,113630.0,0.11388]
[1761061693269,0.190541,113640.0,113630.0,0.11388]
[1761061695544,0.190541,113640.0,113630.0,0.28988985]
[1761061695755,0.190541,113640.0,113630.0,0.11388]
[1761061695952,0.01454664,113640.0,113630.0,0.28988985]
[1761061696502,0.190541,113640.0,113630.0,0.28988985]
[1761061697201,0.190541,113640.0,113630.0,0.11388]
[1761061697968,0.190541,113640.0,113630.0,0.17600985]
[1761061698301,0.17600985,113630.0,113620.0,0.17616975]
[1761061698499,0.17600985,113630.0,113620.0,0.29005079]
[1761061698694,0.19055649,113630.0,113620.0,0.29005079]
[1761061699910,0.19055649,113630.0,113620.0,0.11402545]
[1761061700117,0.19055649,113630.0,113620.0,0.29005079]
[1761061700328,0.19055649,113630.0,113620.0,0.29105079]
[1761061700877,0.19055649,113630.0,113620.0,0.11502545]
[1761061701112,1.26899332,113630.0,113620.0,0.15024545]
[1761061701315,1.38044797,113630.0,113620.0,0.00114545]
[1761061701520,0.51600985,113630.0,113620.0,0.11502545]
[1761061701898,0.17600985,113630.0,113620.0,0.11502545]
[1761061702105,0.19055649,113630.0,113620.0,0.11502545]
[1761061702638,0.53055649,113630.0,113620.0,0.11502545]
[1761061702813,0.51600985,113630.0,113620.0,0.11502545]
[1761061703019,0.58521027,113630.0,113620.0,0.11402545]
[1761061703218,0.17599439,113640.0,113630.0,0.17600883]
[1761061703424,0.19054103,113640.0,113620.0,0.43915079]
[1761061703796,0.01454664,113640.0,113630.0,0.28988985]
[1761061703996,0.190541,113640.0,113630.0,0.11388]
[1761061704213,0.190541,113640.0,113630.0,0.28988985]
[1761061704426,0.17630681,113650.0,113640.0,0.17229436]
[1761061704637,0.19085345,113650.0,113640.0,0.17129436]
[1761061704839,0.19085345,113650.0,113640.0,0.11388]
[1761061705243,0.19085345,113650.0,113630.0,0.17600985]
[1761061705668,0.19085345,113650.0,113640.0,0.11388]
[1761061706468,0.23344544,113650.0,113640.0,0.11388]
[1761061706708,0.2188988,113650.0,113640.0,0.11388]
[1761061707495,0.17630681,113650.0,113640.0,0.11388]
[1761061707690,0.19085345,113650.0,113640.0,0.26298]
[1761061708097,0.19085345,113650.0,113640.0,0.43897436]
[1761061708302,0.19085345,113650.0,113640.0,0.26298]
[1761061710227,0.51600985,113630.0,113620.0,0.00014545]
[1761061710458,0.51600985,113630.0,113620.0,0.20384446]
[1761061710655,0.17600985,113630.0,113620.0,0.20384446]
[1761061710967,0.17600985,113630.0,113620.0,0.96777155]
[1761061710968,0.01454664,113630.0,113620.0,0.96777155]
[1761061711360,0.01454664,113630.0,113620.0,1.08165155]
[1761061711812,0.18510575,113650.0,113630.0,0.17600552]
[1761061712038,0.190541,113640.0,113630.0,0.17600552]
[1761061712227,0.190541,113640.0,113630.0,0.11388]
[1761061712446,0.190541,113640.0,113630.0,0.17600985]
[1761061712696,0.190541,113640.0,113630.0,0.28988985]
[1761061713728,0.17599436,113640.0,113630.0,0.28988985]
[1761061713929,0.190541,113640.0,113630.0,0.28988985]
[1761061714374,0.190541,113640.0,113630.0,0.28984985]
[1761061714680,0.01454664,113640.0,113630.0,0.28984985]
[1761061714876,0.190541,113640.0,113630.0,0.28984985]
[1761061715089,0.190541,113640.0,113620.0,0.96777155]
[1761061715225,0.190541,113640.0,113630.0,0.11384]
[1761061717357,0.01454664,113640.0,113630.0,0.11384]
[1761061717564,0.01454664,113640.0,113630.0,1.08145061]
[1761061717783,0.190541,113640.0,113630.0,1.08145061]
[1761061717986,0.190541,113640.0,113630.0,0.20365901]
[1761061718189,0.190541,113640.0,113630.0,0.37966886]
[1761061718972,0.190541,113640.0,113630.0,0.26582886]
[1761061719175,0.190541,113640.0,113630.0,0.20365901]
[1761061719417,0.17599436,113640.0,113630.0,0.11384]
[1761061719632,0.17600985,113630.0,113620.0,0.00014545]
[1761061719833,0.19055649,113630.0,113620.0,0.00014545]
[1761061719997,0.51600985,113630.0,113620.0,0.11398545]
[1761061720929,0.17600985,113630.0,113620.0,0.29001079]
[1761061721099,0.19055649,113630.0,113620.0,0.29001079]
[1761061721540,0.01454664,113630.0,113620.0,0.29001079]
[1761061721768,0.17599436,113640.0,113630.0,0.17600985]
[1761061721949,0.17600985,113630.0,113620.0,0.99179254]
[1761061722146,0.17599436,113640.0,113620.0,0.99179254]
[1761061722349,0.190541,113640.0,113630.0,0.17600985]
[1761061722866,0.190541,113640.0,113620.0,0.99179254]
[1761061723087,0.190541,113640.0,113620.0,1.08161155]
[1761061723490,0.17600985,113630.0,113620.0,1.08161155]
[1761061723802,0.17600985,113630.0,113620.0,0.20380446]
[1761061723959,0.19055649,113630.0,113620.0,0.20380446]
[1761061724332,0.19055649,113630.0,113620.0,0.3798298]
[1761061724931,0.19055649,113630.0,113620.0,1.08161155]
[1761061725486,0.19055649,113630.0,113620.0,0.3798298]
[1761061725667,0.19055649,113630.0,113620.0,0.20380446]
[1761061725868,0.19055649,113630.0,113620.0,0.3798298]
[1761061726078,0.19055649,113630.0,113620.0,0.11398545]
[1761061726282,0.19055649,113630.0,113620.0,0.39001079]
[1761061726523,0.19055649,113630.0,113620.0,0.21398545]
[1761061726652,0.19055649,113630.0,113620.0,0.39001079]
[1761061726892,0.19055649,113630.0,113620.0,0.53911079]
[1761061728093,0.19055649,113630.0,113620.0,0.10014545]
[1761061728337,0.19055649,113630.0,113620.0,0.21398545]
[1761061729004,0.18510597,113650.0,113620.0,0.4798298]
[1761061729192,0.19054509,113640.0,113630.0,0.17600985]
[1761061729391,0.19054509,113640.0,113620.0,1.18161155]
[1761061729817,0.51600985,113630.0,113620.0,0.10014545]
[1761061730028,0.51600985,113630.0,113620.0,0.21398545]
[1761061731519,0.60582886,113630.0,113620.0,0.21398545]
[1761061731881,1.30761061,113630.0,113620.0,0.21398545]
[1761061732072,0.60582886,113630.0,113620.0,0.21398545]
[1761061732241,0.69564787,113630.0,113620.0,0.21398545]
[1761061732882,0.70558268,113630.0,113620.0,0.21398545]
[1761061733214,1.44354671,113630.0,113620.0,0.21398545]
[1761061733420,1.44354671,113630.0,113620.0,0.10014545]
[1761061733642,0.70558268,113630.0,113620.0,0.10014545]
[1761061733842,0.52594466,113630.0,113620.0,0.10014545]
[1761061733987,0.18594466,113630.0,113620.0,0.27617079]
[1761061734187,0.52594466,113630.0,113620.0,0.27617079]